bitfinex-derivatives/quotes_BNBF0:USTF0_20250220
["timestamp","ask_amount","ask_price","bid_price","bid_amount"]
[1740095222475,2.15414998,656.85,656.53,0.30463192]
[1740095222672,2.84844834,656.84,656.53,0.30463192]
[1740095222871,5.00259832,656.83,656.53,0.30463192]
[1740095223174,2.15414998,656.83,656.53,0.30463192]
[1740095225178,3.785,657.19,656.53,0.30463192]
[1740095225374,2.84828294,657.18,656.53,0.30463192]
[1740095225677,2.84828294,657.17,656.53,0.30463192]
[1740095225878,2.84828294,657.16,656.53,0.30463192]
[1740095226177,2.84828294,657.15,656.53,0.30463192]
[1740095226379,2.84828294,657.14,656.53,0.30463192]
[1740095226578,2.84828294,657.13,656.53,0.30463192]
[1740095226779,2.84828294,657.12,656.53,0.30463192]
[1740095226978,2.84828294,657.11,656.53,0.30463192]
[1740095227179,2.84828294,657.1,656.53,0.30463192]
[1740095227380,2.84828294,657.09,656.53,0.30463192]
[1740095227581,2.84828294,657.08,656.53,0.30463192]
[1740095227778,2.84828294,657.07,656.53,0.30463192]
[1740095227976,2.84828294,657.06,656.53,0.30463192]
[1740095228180,2.84828294,657.05,656.53,0.30463192]
[1740095228381,2.84828294,657.04,656.53,0.30463192]
[1740095228579,2.84828294,657.03,656.53,0.30463192]
[1740095228778,2.84828294,657.02,656.53,0.30463192]
[1740095228983,2.84828294,657.01,656.53,0.30463192]
[1740095229186,2.84828294,657.0,656.53,0.30463192]
[1740095229387,2.84828294,656.99,656.53,0.30463192]
[1740095229586,2.84828294,656.98,656.53,0.30463192]
[1740095229788,2.84828294,656.97,656.53,0.30463192]
[1740095229988,2.84828294,656.96,656.53,0.30463192]
[1740095230181,2.84828294,656.95,656.53,0.30463192]
[1740095230386,2.84828294,656.94,656.53,0.30463192]
[1740095230582,2.84828294,656.93,656.53,0.30463192]
[1740095230786,2.84828294,656.92,656.53,0.30463192]
[1740095231082,2.84828294,656.91,656.53,0.30463192]
[1740095231287,2.84828294,656.9,656.53,0.30463192]
[1740095231489,2.84828294,656.89,656.53,0.30463192]
[1740095231787,2.1507148,656.89,656.53,0.30463192]
[1740095233494,2.84831281,656.88,656.53,0.30463192]
[1740095233689,2.1507148,656.89,656.53,0.30463192]
[1740095233893,2.84830521,656.88,656.53,0.30463192]
[1740095234093,2.1507148,656.89,656.53,0.30463192]
[1740095234293,2.84831172,656.88,656.53,0.30463192]
[1740095234491,3.785,657.19,656.53,0.30463192]
[1740095234692,2.84834471,657.18,656.53,0.30463192]
[1740095234896,4.99934024,657.17,656.53,0.30463192]
[1740095235195,2.84834471,657.16,656.53,0.30463192]
[1740095235394,2.15099553,657.17,656.53,0.30463192]
[1740095235395,2.84834471,657.15,656.53,0.30463192]
[1740095235595,2.84834471,657.14,656.53,0.30463192]
[1740095235795,2.84834471,657.13,656.53,0.30463192]
[1740095235999,2.84834471,657.12,656.53,0.30463192]
[1740095236196,2.84834471,657.11,656.53,0.30463192]
[1740095236496,2.84834471,657.1,656.53,0.30463192]
[1740095236691,2.84834471,657.09,656.53,0.30463192]
[1740095236893,2.84834471,657.08,656.53,0.30463192]
[1740095237096,2.84834471,657.07,656.53,0.30463192]
[1740095237396,2.84834471,657.06,656.53,0.30463192]
[1740095237594,2.84834471,657.05,656.53,0.30463192]
[1740095237795,2.84834471,657.04,656.53,0.30463192]
[1740095237994,2.84834471,657.03,656.53,0.30463192]
[1740095238189,2.84834471,657.02,656.53,0.30463192]
[1740095238389,2.15099553,657.01,656.53,0.30463192]
[1740095240497,2.15099553,657.0,656.53,0.30463192]
[1740095241897,2.15099553,656.99,656.53,0.30463192]
[1740095243901,2.15099553,656.98,656.53,0.30463192]
[1740095244508,2.84949749,656.97,656.53,0.30463192]
[1740095244709,2.84949749,656.96,656.53,0.30463192]
[1740095244906,2.84949749,656.95,656.53,0.30463192]
[1740095245102,2.84949749,656.94,656.53,0.30463192]
[1740095245302,2.84949749,656.93,656.53,0.30463192]
[1740095245501,5.00049302,656.92,656.53,0.30463192]
[1740095245705,2.84949749,656.91,656.53,0.30463192]
[1740095245907,2.84949749,656.9,656.53,0.30463192]
[1740095246105,2.84949749,656.89,656.53,0.30463192]
[1740095246407,2.84949749,656.88,656.53,0.30463192]
[1740095246607,2.84949749,656.87,656.53,0.30463192]
[1740095246809,2.84949749,656.86,656.53,0.30463192]
[1740095247004,2.84949749,656.85,656.53,0.30463192]
[1740095247205,2.84949749,656.84,656.53,0.30463192]
[1740095247503,2.15099553,656.83,656.53,0.30463192]
[1740095248910,2.84985599,656.82,656.53,0.30463192]
[1740095249108,2.84985599,656.81,656.53,0.30463192]
[1740095249304,2.84985599,656.8,656.53,0.30463192]
[1740095249507,2.84985599,656.79,656.53,0.30463192]
[1740095249707,2.84985599,656.78,656.53,0.30463192]
[1740095249908,2.15099553,656.79,656.53,0.30463192]
[1740095250104,2.84992534,656.78,656.53,0.30463192]
[1740095250409,2.15099553,656.79,656.53,0.30463192]
[1740095250608,2.85006552,656.78,656.53,0.30463192]
[1740095250806,2.15099553,656.79,656.53,0.30463192]
[1740095251010,2.85005454,656.78,656.53,0.30463192]
[1740095251209,2.15099553,656.79,656.53,0.30463192]
[1740095251406,2.85005454,656.78,656.53,0.30463192]
[1740095251603,2.15099553,656.78,656.53,0.30463192]
[1740095251909,2.85009148,656.77,656.53,0.30463192]
[1740095252105,2.15099553,656.78,656.53,0.30463192]
[1740095252310,2.85010315,656.77,656.53,0.30463192]
[1740095252510,2.15099553,656.77,656.53,0.30463192]
[1740095252903,2.85022752,656.76,656.53,0.30463192]
[1740095253109,2.85022752,656.75,656.53,0.30463192]
[1740095253302,2.85022752,656.74,656.53,0.30463192]
[1740095253503,2.85022752,656.73,656.53,0.30463192]
[1740095253809,2.85022752,656.72,656.53,0.30463192]
[1740095254004,2.15099553,656.75,656.53,0.30463192]
[1740095254212,2.8501909,656.74,656.53,0.30463192]
[1740095254405,2.8501909,656.73,656.53,0.30463192]
[1740095254605,2.8501909,656.72,656.53,0.30463192]
[1740095254807,5.00118643,656.71,656.53,0.30463192]
[1740095255107,2.8501909,656.7,656.53,0.30463192]
[1740095255307,2.8501909,656.69,656.53,0.30463192]
[1740095255511,2.15099553,656.71,656.53,0.30463192]
[1740095255806,2.84987592,656.7,656.53,0.30463192]
[1740095256011,2.15099553,656.71,656.53,0.30463192]
[1740095256307,2.8498364,656.7,656.53,0.30463192]
[1740095256506,2.15099553,656.71,656.53,0.30463192]
[1740095256710,2.849835,656.7,656.53,0.30463192]
[1740095256906,2.849835,656.69,656.53,0.30463192]
[1740095257110,2.15099553,656.71,656.53,0.30463192]
[1740095257312,5.548,657.19,656.53,0.30463192]
[1740095257313,2.84985476,656.7,656.53,0.30463192]
[1740095257612,2.84983801,656.69,656.53,0.30463192]
[1740095257811,2.84986952,656.68,656.53,0.30463192]
[1740095258008,5.548,657.19,656.53,0.30463192]
[1740095258207,2.84989472,657.18,656.53,0.30463192]
[1740095258405,2.84989472,657.17,656.53,0.30463192]
[1740095258610,2.84989472,657.16,656.53,0.30463192]
[1740095258810,2.84989472,657.15,656.53,0.30463192]
[1740095259006,2.84989472,657.14,656.53,0.30463192]
[1740095259211,2.84989472,657.13,656.53,0.30463192]
[1740095259411,2.84989472,657.12,656.53,0.30463192]
[1740095259609,2.84989472,657.11,656.53,0.30463192]
[1740095259909,2.84989472,657.1,656.53,0.30463192]
[1740095260113,2.84989472,657.09,656.53,0.30463192]
[1740095260315,2.84989472,657.08,656.53,0.30463192]
[1740095260516,2.15234542,657.15,656.53,0.30463192]
[1740095260517,2.84989472,657.07,656.53,0.30463192]
[1740095260716,2.84989472,657.06,656.53,0.30463192]
[1740095260915,2.84989472,657.05,656.52,1.58808027]
[1740095261216,2.84989472,657.04,656.52,1.58808027]
[1740095261417,2.84989472,657.03,656.52,1.58808027]
[1740095261617,2.84989472,657.02,656.52,1.58808027]
[1740095261919,2.84989472,657.01,656.52,1.58808027]
[1740095262116,2.84989472,657.0,656.52,1.58808027]
[1740095262310,2.84989472,656.99,656.52,1.58808027]
[1740095262510,2.84989472,656.98,656.52,1.58808027]
[1740095262715,2.84989472,656.97,656.52,1.58808027]
[1740095262911,2.84989472,656.96,656.52,1.58808027]
[1740095263112,2.84989472,656.95,656.52,1.58808027]
[1740095263317,2.84989472,656.94,656.52,1.58808027]
[1740095263616,2.84989472,656.93,656.52,1.58808027]
[1740095263812,2.84989472,656.92,656.52,1.58808027]
[1740095264013,2.84989472,656.91,656.52,1.58808027]
[1740095264217,2.84989472,656.9,656.52,1.58808027]
[1740095264417,2.84989472,656.89,656.52,1.58808027]
[1740095264615,2.84989472,656.88,656.52,1.58808027]
[1740095264815,2.84989472,656.87,656.52,1.58808027]
[1740095265015,2.84989472,656.86,656.52,1.58808027]
[1740095265212,2.84989472,656.85,656.52,1.58808027]
[1740095265417,2.84989472,656.84,656.52,1.58808027]
[1740095265718,5.00224014,656.83,656.52,1.58808027]
[1740095266018,2.84989472,656.82,656.52,1.58808027]
[1740095266319,2.84989472,656.81,656.52,1.58808027]
[1740095266519,2.84989472,656.8,656.52,1.58808027]
[1740095266720,2.84989472,656.79,656.52,1.58808027]
[1740095266922,2.84989472,656.78,656.52,1.58808027]
[1740095267113,2.84989472,656.77,656.52,1.58808027]
[1740095267315,2.84989472,656.76,656.52,1.58808027]
[1740095267519,2.84989472,656.75,656.52,1.58808027]
[1740095267715,2.84989472,656.74,656.52,1.58808027]
[1740095267922,2.84989472,656.73,656.52,1.58808027]
[1740095268119,2.84989472,656.72,656.52,1.58808027]
[1740095268321,2.84989472,656.71,656.52,1.58808027]
[1740095268517,2.84989472,656.7,656.52,1.58808027]
[1740095268719,2.84989472,656.69,656.52,1.58808027]
[1740095268920,2.84989472,656.68,656.52,1.58808027]
[1740095269121,2.84989472,656.67,656.52,1.58808027]
[1740095269418,2.84989472,656.66,656.52,1.58808027]
[1740095269619,2.84989472,656.65,656.52,1.58808027]
[1740095269924,2.84989472,656.64,656.52,1.58808027]
[1740095270223,2.84989472,656.63,656.52,1.58808027]
[1740095270417,2.84989472,656.62,656.52,1.58808027]
[1740095270623,2.84989472,656.61,656.52,1.58808027]
[1740095270824,2.84989472,656.6,656.52,1.58808027]
[1740095271023,5.00224014,656.59,656.52,1.58808027]
[1740095271222,2.84989472,656.58,656.52,1.58808027]
[1740095271422,2.15234542,656.59,656.52,1.58808027]
[1740095271618,2.84472645,656.58,656.52,1.58808027]
[1740095271817,2.15234542,656.59,656.52,1.58808027]
[1740095272017,2.84471862,656.58,656.52,1.58808027]
[1740095272221,2.15234542,656.59,656.52,1.58808027]
[1740095272824,2.84451528,656.58,656.52,1.58808027]
[1740095273027,2.84451528,656.57,655.81,1.13535803]
[1740095273226,2.84451528,656.56,655.82,0.30496172]
[1740095273425,4.9968607,656.55,655.82,0.30496172]
[1740095273624,2.84451528,656.54,655.82,0.30496172]
[1740095273825,2.84451528,656.53,655.82,0.30496172]
[1740095274025,2.15234542,656.55,655.82,0.30496172]
[1740095274923,2.15234542,656.54,655.82,0.30496172]
[1740095275927,2.15234542,656.54,655.83,1.58949472]
[1740095276126,2.15234542,656.54,655.84,0.30495242]
[1740095276627,2.15234542,656.53,655.84,0.30495242]
[1740095278629,2.15234542,656.52,655.84,0.30495242]
[1740095280129,2.15234542,656.51,655.84,0.30495242]
[1740095281831,2.15234542,656.5,655.84,0.30495242]
[1740095283525,2.15234542,656.49,655.84,0.30495242]
[1740095285334,2.15234542,656.48,655.84,0.30495242]
[1740095286635,2.15234542,656.47,655.84,0.30495242]
[1740095288633,2.15234542,656.46,655.84,0.30495242]
[1740095290334,2.838863,656.45,655.84,0.30495242]
[1740095290639,2.15234542,656.46,655.84,0.30495242]
[1740095290839,2.15234542,656.44,655.84,0.30495242]
[1740095292241,4.99144008,656.43,655.84,0.30495242]
[1740095292442,2.83909466,656.42,655.84,0.30495242]
[1740095292636,2.15234542,656.43,655.84,0.30495242]
[1740095292834,2.83940477,656.42,655.84,0.30495242]
[1740095293036,2.15234542,656.43,655.84,0.30495242]
[1740095293336,2.83939651,656.42,655.84,0.30495242]
[1740095293534,2.15234542,656.42,655.84,0.30495242]
[1740095295443,3.637,656.75,655.84,0.30495242]
[1740095295643,2.83988662,656.74,655.84,0.30495242]
[1740095295843,3.637,656.75,655.84,0.30495242]
[1740095295844,2.83988662,656.73,655.84,0.30495242]
[1740095296038,2.83988662,656.72,655.84,0.30495242]
[1740095296238,2.83988662,656.71,655.84,0.30495242]
[1740095296442,2.83988662,656.7,655.84,0.30495242]
[1740095296741,2.83988662,656.69,655.84,0.30495242]
[1740095296937,2.83988662,656.68,655.84,0.30495242]
[1740095297140,2.83988662,656.67,655.84,0.30495242]
[1740095297341,2.83988662,656.66,655.84,0.30495242]
[1740095297541,2.83988662,656.65,655.84,0.30495242]
[1740095297839,4.98494583,656.64,655.84,0.30495242]
[1740095298044,2.83988662,656.63,655.84,0.30495242]
[1740095298238,2.83988662,656.62,655.84,0.30495242]
[1740095298439,2.83988662,656.61,655.84,0.30495242]
[1740095298637,2.83988662,656.6,655.84,0.30495242]
[1740095298838,2.83988662,656.59,655.84,0.30495242]
[1740095299040,4.98494583,656.58,655.84,0.30495242]
[1740095299237,2.83988662,656.57,655.84,0.30495242]
[1740095299441,2.83988662,656.56,655.84,0.30495242]
[1740095299640,2.83988662,656.55,655.84,0.30495242]
[1740095299840,2.83988662,656.54,655.84,0.30495242]
[1740095300046,2.83988662,656.53,655.84,0.30495242]
[1740095300242,2.83988662,656.52,655.84,0.30495242]
[1740095300439,2.83988662,656.51,655.84,0.30495242]
[1740095300645,2.14505921,656.58,655.84,0.30495242]
[1740095300846,2.84157916,656.57,655.84,0.30495242]
[1740095301046,2.84157916,656.56,655.84,0.30495242]
[1740095301245,2.84157916,656.55,655.84,0.30495242]
[1740095301544,2.84157916,656.54,655.84,0.30495242]
[1740095301740,2.14505921,656.55,655.84,0.30495242]
[1740095301741,2.84157916,656.53,655.84,0.30495242]
[1740095301945,2.84157916,656.52,655.84,0.30495242]
[1740095302140,2.84157916,656.51,655.84,0.30495242]
[1740095302344,2.84157916,656.5,655.84,0.30495242]
[1740095302544,2.84157916,656.49,655.84,0.30495242]
[1740095302743,2.84157916,656.48,655.84,0.30495242]
[1740095302940,2.84157916,656.47,655.84,0.30495242]
[1740095303146,2.84157916,656.46,655.84,0.30495242]
[1740095303447,2.14505921,656.45,655.84,0.30495242]
[1740095304940,2.14505921,656.44,655.84,0.30495242]
[1740095306246,2.84388771,656.43,655.84,0.30495242]
[1740095306444,2.84388771,656.42,655.84,0.30495242]
[1740095306642,4.98894692,656.41,655.84,0.30495242]
[1740095306846,2.14505921,656.41,655.84,0.30495242]
[1740095307043,2.84429434,656.4,655.84,0.30495242]
[1740095307346,2.84429434,656.39,655.84,0.30495242]
[1740095307548,2.84429434,656.38,655.84,0.30495242]
[1740095307844,2.84429434,656.37,655.84,0.30495242]
[1740095308144,2.14505921,656.41,655.84,0.30495242]
[1740095308348,2.14505921,656.36,655.84,0.30495242]
[1740095311046,2.14505921,656.35,655.84,0.30495242]
[1740095312646,2.84621874,656.34,655.84,0.30495242]
[1740095312845,2.14505921,656.35,655.84,0.30495242]
[1740095313048,2.84623928,656.34,655.84,0.30495242]
[1740095313242,2.14505921,656.34,655.84,0.30495242]
[1740095313446,2.84612214,656.33,655.84,0.30495242]
[1740095313648,2.14505921,656.34,655.84,0.30495242]
[1740095313847,2.84645838,656.33,655.84,0.30495242]
[1740095314045,2.14505921,656.34,655.84,0.30495242]
[1740095314245,2.84646677,656.33,655.84,0.30495242]
[1740095314448,2.14505921,656.34,655.84,0.30495242]
[1740095314647,2.84662794,656.33,655.84,0.30495242]
[1740095314849,2.14505921,656.33,655.84,0.30495242]
[1740095316554,1.655,656.62,655.84,0.30495242]
[1740095316758,2.84724983,656.61,655.84,0.30495242]
[1740095316951,2.84724983,656.6,655.84,0.30495242]
[1740095317153,2.84724983,656.59,655.84,0.30495242]
[1740095317349,2.84724983,656.58,655.84,0.30495242]
[1740095317556,2.84724983,656.57,655.84,0.30495242]
[1740095317851,2.84724983,656.56,655.84,0.30495242]
[1740095318052,2.15076569,656.59,655.84,0.30495242]
[1740095318258,2.84756329,656.58,655.84,0.30495242]
[1740095318457,2.84756329,656.57,655.84,0.30495242]
[1740095318659,2.84756329,656.56,655.84,0.30495242]
[1740095318853,2.84809276,656.55,655.84,0.30495242]
[1740095319058,2.15076569,656.56,655.84,0.30495242]
[1740095319258,2.84795565,656.55,655.84,0.30495242]
[1740095319454,2.8483674,656.54,655.84,0.30495242]
[1740095319654,2.15076569,656.56,655.84,0.30495242]
[1740095319959,2.8483674,656.55,655.84,0.30495242]
[1740095320156,2.8483674,656.54,655.84,0.30495242]
[1740095320357,2.15076569,656.56,655.84,0.30495242]
[1740095320960,4.99944273,656.55,655.84,0.30495242]
[1740095321159,2.84867704,656.54,655.84,0.30495242]
[1740095321361,2.15076569,656.55,655.84,0.30495242]
[1740095321659,2.84860889,656.54,655.84,0.30495242]
[1740095321859,2.15076569,656.55,655.84,0.30495242]
[1740095322460,2.84853693,656.54,655.84,0.30495242]
[1740095322757,2.15076569,656.55,655.84,0.30495242]
[1740095322960,2.15076569,656.53,655.84,0.30495242]
[1740095325156,2.15076569,656.52,655.84,0.30495242]
[1740095326661,2.15076569,656.51,655.84,0.30495242]
[1740095327062,2.849053,656.5,655.84,0.30495242]
[1740095327261,2.849053,656.49,655.84,0.30495242]
[1740095327460,2.849053,656.48,655.84,0.30495242]
[1740095327761,2.849053,656.47,655.84,0.30495242]
[1740095327956,2.849053,656.46,655.84,0.30495242]
[1740095328158,2.849053,656.45,655.84,0.30495242]
[1740095328361,2.849053,656.44,655.84,0.30495242]
[1740095328561,2.849053,656.43,655.84,0.30495242]
[1740095328764,2.849053,656.42,655.84,0.30495242]
[1740095328963,2.849053,656.41,655.84,0.30495242]
[1740095329160,2.849053,656.4,655.84,0.30495242]
[1740095329364,2.849053,656.39,655.84,0.30495242]
[1740095329667,2.849053,656.38,655.84,0.30495242]
[1740095329867,2.849053,656.37,655.84,0.30495242]
[1740095330162,2.849053,656.36,655.84,0.30495242]
[1740095330368,2.85005944,656.35,655.84,0.30495242]
[1740095330667,2.85005944,656.34,655.84,0.30495242]
[1740095330869,2.85005944,656.33,655.84,0.30495242]
[1740095331068,2.85005944,656.32,655.84,0.30495242]
[1740095331270,2.15076569,656.36,655.84,0.30495242]
[1740095331463,2.85041188,656.35,655.84,0.30495242]
[1740095331666,2.85041188,656.34,655.84,0.30495242]
[1740095331962,2.85041188,656.33,655.84,0.30495242]
[1740095332160,2.15076569,656.36,655.84,0.30495242]
[1740095332368,1.764,656.55,655.84,0.30495242]
[1740095333163,2.15351401,656.54,655.84,0.30495242]
[1740095334569,2.15351401,656.53,655.84,0.30495242]
[1740095336872,2.15351401,656.52,655.84,0.30495242]
[1740095338174,2.15351401,656.51,655.84,0.30495242]
[1740095340278,2.15351401,656.5,655.84,0.30495242]
[1740095341880,5.00432332,656.49,655.84,0.30495242]
[1740095342072,2.85080931,656.48,655.84,0.30495242]
[1740095342273,2.85080931,656.47,655.84,0.30495242]
[1740095342477,2.15351401,656.49,655.84,0.30495242]
[1740095342478,2.85080931,656.46,655.84,0.30495242]
[1740095342675,2.85080931,656.45,655.84,0.30495242]
[1740095342879,2.85080931,656.44,655.84,0.30495242]
[1740095343078,2.85080931,656.43,655.84,0.30495242]
[1740095343279,2.85080931,656.42,655.84,0.30495242]
[1740095343475,2.85080931,656.41,655.84,0.30495242]
[1740095343682,2.85080931,656.4,655.84,0.30495242]
[1740095343881,2.85080931,656.39,655.84,0.30495242]
[1740095344080,2.85080931,656.38,655.84,0.30495242]
[1740095344281,2.15351401,656.41,655.84,0.30495242]
[1740095345376,2.15351401,656.4,655.84,0.30495242]
[1740095347077,2.15351401,656.39,655.84,0.30495242]
[1740095349784,2.293,656.55,655.84,0.30495242]
[1740095349785,2.15351401,656.38,655.84,0.30495242]
[1740095352492,2.15351401,656.37,655.84,0.30495242]
[1740095354197,2.85212984,656.36,655.84,0.30495242]
[1740095354398,2.85212984,656.35,655.84,0.30495242]
[1740095354700,2.85212984,656.34,655.84,0.30495242]
[1740095354997,2.85212984,656.33,655.84,0.30495242]
[1740095355195,2.85212984,656.32,655.84,0.30495242]
[1740095355396,2.85212984,656.31,655.84,0.30495242]
[1740095355600,2.85212984,656.3,655.84,0.30495242]
[1740095355898,2.85212984,656.29,655.84,0.30495242]
[1740095356097,2.15351401,656.29,655.84,0.30495242]
[1740095358199,1.393,656.52,655.84,0.30495242]
[1740095358400,2.85318793,656.51,655.84,0.30495242]
[1740095358599,2.85318793,656.5,655.84,0.30495242]
[1740095358896,2.85318793,656.49,655.84,0.30495242]
[1740095359099,2.85318793,656.48,655.84,0.30495242]
[1740095359400,2.85318793,656.47,655.84,0.30495242]
[1740095359597,2.85318793,656.46,655.84,0.30495242]
[1740095359796,2.85318793,656.45,655.84,0.30495242]
[1740095359998,2.85318793,656.44,655.84,0.30495242]
[1740095360293,2.85318793,656.43,655.84,0.30495242]
[1740095360495,2.85318793,656.42,655.84,0.30495242]
[1740095360694,2.85318793,656.41,655.84,0.30495242]
[1740095360998,2.85318793,656.4,655.84,0.30495242]
[1740095361198,2.85318793,656.39,655.84,0.30495242]
[1740095361398,2.85318793,656.38,655.84,0.30495242]
[1740095361597,2.85318793,656.37,655.84,0.30495242]
[1740095361795,2.85318793,656.36,655.84,0.30495242]
[1740095362098,2.85318793,656.35,655.84,0.30495242]
[1740095362293,2.85318793,656.34,655.84,0.30495242]
[1740095362499,5.0084512,656.33,655.84,0.30495242]
[1740095362700,2.85318793,656.32,655.84,0.30495242]
[1740095362899,2.85318793,656.31,655.84,0.30495242]
[1740095363197,2.85318793,656.3,655.84,0.30495242]
[1740095363399,2.85318793,656.29,655.84,0.30495242]
[1740095363597,2.85318793,656.28,655.84,0.30495242]
[1740095363797,2.15526327,656.33,655.84,0.30495242]
[1740095363998,2.85501028,656.32,655.84,0.30495242]
[1740095364193,2.85501028,656.31,655.84,0.30495242]
[1740095364399,2.85501028,656.3,655.84,0.30495242]
[1740095364599,2.85501028,656.29,655.84,0.30495242]
[1740095364900,2.85501028,656.28,655.84,0.30495242]
[1740095365102,2.85538026,656.27,655.84,0.30495242]
[1740095365302,2.85538026,656.26,655.84,0.30495242]
[1740095365505,2.85538026,656.25,655.84,0.30495242]
[1740095365699,2.15526327,656.32,655.84,0.30495242]
[1740095365900,2.85580178,656.31,655.84,0.30495242]
[1740095366103,2.85580178,656.3,655.84,0.30495242]
[1740095366303,2.85580178,656.29,655.84,0.30495242]
[1740095366505,2.85580178,656.28,655.84,0.30495242]
[1740095366698,2.85580178,656.27,655.84,0.30495242]
[1740095367001,2.85580178,656.26,655.84,0.30495242]
[1740095367199,2.85580178,656.25,655.84,0.30495242]
[1740095367401,2.15750662,656.3,655.84,0.30495242]
[1740095367698,2.85624737,656.29,655.84,0.30495242]
[1740095367900,2.85624737,656.28,655.84,0.30495242]
[1740095368102,2.85624737,656.27,655.84,0.30495242]
[1740095368304,2.85624737,656.26,655.84,0.30495242]
[1740095368606,2.85641869,656.25,655.84,0.30495242]
[1740095368904,1.393,656.52,655.84,0.30495242]
[1740095369104,2.85641227,656.51,655.84,0.30495242]
[1740095369299,2.85641227,656.5,655.84,0.30495242]
[1740095369505,2.85641227,656.49,655.84,0.30495242]
[1740095369706,2.85641227,656.48,655.84,0.30495242]
[1740095369905,2.85641227,656.47,655.84,0.30495242]
[1740095370102,2.85641227,656.46,655.84,0.30495242]
[1740095370306,2.85641227,656.45,655.84,0.30495242]
[1740095370508,2.85641227,656.44,655.84,0.30495242]
[1740095370705,2.85641227,656.43,655.84,0.30495242]
[1740095370901,2.85641227,656.42,655.84,0.30495242]
[1740095371106,2.85641227,656.41,655.84,0.30495242]
[1740095371307,2.85641227,656.4,655.84,0.30495242]
[1740095371503,2.85641227,656.39,655.84,0.30495242]
[1740095371706,2.1577062,656.44,655.84,0.30495242]
[1740095371707,2.85641227,656.38,655.84,0.30495242]
[1740095371907,2.85641227,656.37,655.84,0.30495242]
[1740095372107,2.85641227,656.36,655.84,0.30495242]
[1740095372307,2.1577062,656.44,655.84,0.30495242]
[1740095372505,2.85703373,656.43,655.84,0.30495242]
[1740095372704,2.85703373,656.42,655.84,0.30495242]
[1740095372907,2.85703373,656.41,655.84,0.30495242]
[1740095373209,2.85703373,656.4,655.84,0.30495242]
[1740095373409,2.85703373,656.39,655.84,0.30495242]
[1740095373609,2.85703373,656.38,655.84,0.30495242]
[1740095373909,2.85703373,656.37,655.84,0.30495242]
[1740095374111,2.85703373,656.36,655.84,0.30495242]
[1740095374308,2.85703373,656.35,655.84,0.30495242]
[1740095374509,2.85703373,656.34,655.84,0.30495242]
[1740095374706,2.1577062,656.42,655.84,0.30495242]
[1740095374912,2.85726865,656.41,655.84,0.30495242]
[1740095375106,2.1577062,656.33,655.84,0.30495242]
[1740095375511,2.85740298,656.32,655.84,0.30495242]
[1740095375711,2.85740298,656.31,655.84,0.30495242]
[1740095375915,2.1577062,656.33,655.84,0.30495242]
[1740095376211,2.8573997,656.32,655.84,0.30495242]
[1740095376413,2.1577062,656.33,655.84,0.30495242]
[1740095376711,2.85757458,656.32,655.84,0.30495242]
[1740095376911,2.85757458,656.31,655.84,0.30495242]
[1740095377111,2.1577062,656.32,655.84,0.30495242]
[1740095377512,2.8576643,656.31,655.84,0.30495242]
[1740095377813,2.1577062,656.32,655.84,0.30495242]
[1740095378014,2.8577321,656.31,655.84,0.30495242]
[1740095378312,2.8577321,656.3,655.84,0.30495242]
[1740095378512,2.8577321,656.29,655.84,0.30495242]
[1740095378709,2.1577062,656.32,655.84,0.30495242]
[1740095378912,2.1577062,656.28,655.84,0.30495242]
[1740095379115,2.85788897,656.27,655.84,0.30495242]
[1740095379313,2.1577062,656.28,655.84,0.30495242]
[1740095380516,2.85807038,656.27,655.84,0.30495242]
[1740095380715,2.85810214,656.26,655.84,0.30495242]
[1740095380916,2.85815159,656.25,655.84,0.30495242]
[1740095381110,2.15903505,656.26,655.84,0.30495242]
[1740095381314,2.85793205,656.25,655.84,0.30495242]
[1740095381514,2.15903505,656.26,655.84,0.30495242]
[1740095381714,2.85787942,656.25,655.84,0.30495242]
[1740095381912,2.15903505,656.26,655.84,0.30495242]
[1740095382112,2.85777801,656.25,655.84,0.30495242]
[1740095382316,5.01665008,656.24,655.84,0.30495242]
[1740095382516,2.15903505,656.24,655.84,0.30495242]
[1740095383316,2.85762333,656.23,655.84,0.30495242]
[1740095383513,2.15903505,656.24,655.84,0.30495242]
[1740095384019,2.85754674,656.23,655.84,0.30495242]
[1740095384214,2.15903505,656.24,655.84,0.30495242]
[1740095384419,5.01627662,656.23,655.84,0.30495242]
[1740095384621,2.15903505,656.23,655.84,0.30495242]
[1740095386625,1.393,656.52,655.84,0.30495242]
[1740095386925,2.85685676,656.51,655.84,0.30495242]
[1740095387125,2.85685676,656.5,655.84,0.30495242]
[1740095387325,2.85685676,656.49,655.84,0.30495242]
[1740095387525,2.85685676,656.48,655.84,0.30495242]
[1740095387725,5.01491715,656.47,655.84,0.30495242]
[1740095387918,2.85685676,656.46,655.84,0.30495242]
[1740095388122,2.85685676,656.45,655.84,0.30495242]
[1740095388328,2.15806039,656.47,655.84,0.30495242]
[1740095388329,2.85685676,656.44,655.84,0.30495242]
[1740095388527,2.85685676,656.43,655.84,0.30495242]
[1740095388726,2.85685676,656.42,655.84,0.30495242]
[1740095388927,2.85685676,656.41,655.84,0.30495242]
[1740095389126,2.15806039,656.47,655.84,0.30495242]
[1740095389127,2.85685676,656.4,655.84,0.30495242]
[1740095389422,5.01491715,656.39,655.84,0.30495242]
[1740095389627,2.85685676,656.38,655.84,0.30495242]